bitfinex/quotes_SOLUSD_20240615
["timestamp","ask_amount","ask_price","bid_price","bid_amount"]
[1718480866095,8.1807,144.49,144.44,5.62]
[1718480866408,8.1807,144.49,144.43,5.62]
[1718480866702,5.62,144.49,144.43,5.62]
[1718480872324,5.62,144.48,144.42,15.8868]
[1718480872528,5.62,144.47,144.42,15.8868]
[1718480873641,5.62,144.46,144.42,15.8868]
[1718480873801,5.62,144.45,144.36,6.5869]
[1718480874009,5.62,144.45,144.4,5.62]
[1718480874403,5.62,144.46,144.4,5.62]
[1718480875135,5.62,144.45,144.4,5.62]
[1718480877106,5.62,144.45,144.37,0.17]
[1718480877337,5.62,144.45,144.4,5.62]
[1718480881531,0.17,144.46,144.36,6.5869]
[1718480881750,5.62,144.42,144.36,12.2069]
[1718480883427,5.62,144.42,144.37,5.62]
[1718480884241,5.62,144.43,144.36,6.5869]
[1718480884535,8.1818,144.43,144.36,6.5869]
[1718480884714,5.62,144.43,144.37,5.62]
[1718480889116,2.5617,144.44,144.37,5.62]
[1718480889317,5.62,144.43,144.37,5.62]
[1718480890214,0.34,144.45,144.36,6.5869]
[1718480890538,20.0,144.45,144.39,5.62]
[1718480890862,22.48,144.48,144.37,5.62]
[1718480890863,5.62,144.43,144.37,5.62]
[1718480891008,8.1817,144.43,144.37,5.62]
[1718480891212,5.62,144.42,144.36,6.5869]
[1718480891430,5.62,144.42,144.36,12.2069]
[1718480892315,5.62,144.42,144.37,5.62]
[1718480893710,23.2222,144.46,144.38,5.62]
[1718480893944,23.2222,144.46,144.36,6.5869]
[1718480893945,5.62,144.44,144.39,5.62]
[1718480894130,20.0,144.45,144.39,5.62]
[1718480894317,7.78627015,144.5,144.42,5.62]
[1718480894318,34.05187152,144.49,144.42,5.62]
[1718480894514,5.62,144.48,144.42,5.62]
[1718480895212,8.1809,144.48,144.42,5.62]
[1718480895412,13.3027,144.48,144.42,5.62]
[1718480896036,20.9854,144.48,144.42,5.62]
[1718480896872,28.6681,144.48,144.42,5.62]
[1718480897153,2.5611,144.47,144.42,5.62]
[1718480897969,31.2291,144.48,144.42,5.62]
[1718480898174,5.62,144.47,144.42,5.62]
[1718480898976,2.561,144.47,144.42,5.62]
[1718480900192,7.6832,144.47,144.42,5.62]
[1718480900343,20.9865,144.47,144.42,5.62]
[1718480900543,20.9865,144.47,144.41,5.62]
[1718480900850,13.3032,144.47,144.41,5.62]
[1718480901050,5.62,144.47,144.41,5.62]
[1718480901244,20.9865,144.47,144.42,21.3438]
[1718480901459,13.3033,144.47,144.42,21.3438]
[1718480901773,20.9865,144.47,144.42,21.3438]
[1718480902076,20.9865,144.47,144.42,15.7238]
[1718480902879,2.5612,144.46,144.42,15.7238]
[1718480903074,8.1812,144.46,144.42,15.7238]
[1718480903381,5.62,144.46,144.42,15.7238]
[1718480906196,5.62,144.47,144.42,21.3438]
[1718480906491,2.5607,144.49,144.44,5.62]
[1718480906988,31.2264,144.5,144.44,5.62]
[1718480907183,2.5607,144.49,144.44,5.62]
[1718480907355,7.6822,144.49,144.44,5.62]
[1718480907779,2.5607,144.49,144.44,5.62]
[1718480910593,31.2265,144.5,144.44,5.62]
[1718480911888,7.6814,144.51,144.42,15.7238]
[1718480912056,28.8327,144.52,144.46,5.62]
[1718480912262,2.5604,144.51,144.46,5.62]
[1718480912472,31.393,144.52,144.47,5.62]
[1718480912681,2.5603,144.51,144.47,5.62]
[1718480912863,7.6811,144.51,144.47,5.62]
[1718480913482,7.6811,144.51,144.46,5.62]
[1718480913688,25.6038,144.51,144.46,5.62]
[1718480913869,2.5605,144.5,144.46,5.62]
[1718480914380,25.604,144.51,144.46,5.62]
[1718480914580,2.5605,144.5,144.46,5.62]
[1718480916584,23.0435,144.51,144.46,5.62]
[1718480916585,25.604,144.51,144.46,5.62]
[1718480917182,15.3624,144.51,144.46,5.62]
[1718480917875,7.6813,144.51,144.46,5.62]
[1718480918079,15.3624,144.51,144.46,5.62]
[1718480918589,7.6809,144.52,144.47,15.0114]
[1718480918795,13.3009,144.52,144.47,20.6314]
[1718480919590,7.6809,144.52,144.47,20.6314]
[1718480919889,15.3615,144.52,144.47,20.6314]
[1718480920260,7.6809,144.52,144.47,20.6314]
[1718480920486,25.6023,144.52,144.47,20.6314]
[1718480920784,2.5604,144.51,144.47,20.6314]
[1718480921371,15.3614,144.52,144.47,20.6314]
[1718480922266,25.6022,144.52,144.47,20.6314]
[1718480922964,2.5603,144.51,144.47,20.6314]
[1718480925495,7.6812,144.51,144.47,20.6314]
[1718480925664,2.5604,144.51,144.47,20.6314]
[1718480925866,7.6811,144.51,144.47,20.6314]
[1718480926189,7.6808,144.52,144.47,20.6314]
[1718480926367,25.6023,144.52,144.47,20.6314]
[1718480926874,2.5602,144.52,144.47,20.6314]
[1718480927078,5.1204,144.52,144.47,20.6314]
[1718480927288,7.6806,144.52,144.47,20.6314]
[1718480927895,17.9195,144.54,144.48,5.62]
[1718480928110,5.62,144.54,144.48,5.62]
[1718480928291,7.6796,144.54,144.49,5.62]
[1718480928485,15.3591,144.54,144.49,5.62]
[1718480929087,2.56,144.53,144.49,5.62]
[1718480929597,2.56,144.53,144.48,5.62]
[1718480931007,7.68,144.53,144.48,5.62]
[1718480931210,2.56,144.53,144.48,5.62]
[1718480932987,31.2187,144.54,144.48,5.62]
[1718480933182,2.56,144.53,144.48,5.62]
[1718480934117,31.2188,144.54,144.48,5.62]
[1718480934408,2.5604,144.51,144.47,15.0114]
[1718480934616,8.1804,144.51,144.47,15.0114]
[1718480935007,5.62,144.51,144.47,15.0114]
[1718480936115,2.5603,144.52,144.47,15.0114]
[1718480936417,5.62,144.52,144.47,15.0114]
[1718480936712,5.62,144.53,144.47,20.6314]
[1718480936919,8.1799,144.54,144.48,5.62]
[1718480937098,5.62,144.54,144.47,15.0114]
[1718480937303,5.62,144.54,144.49,5.62]
[1718480937802,21.77759023,144.6,144.49,5.62]
[1718480937803,28.76204508,144.59,144.49,5.62]
[1718480938005,2.5597,144.55,144.5,5.62]
[1718480938215,31.2153,144.56,144.5,5.62]
[1718480938416,2.5596,144.55,144.5,5.62]
[1718480938791,12.7966,144.57,144.5,5.62]
[1718480938995,13.4685,144.56,144.5,5.62]
[1718480939195,20.9769,144.56,144.5,5.62]
[1718480939735,0.34,144.58,144.47,15.0114]
[1718480939917,13.3002,144.53,144.47,20.6314]
[1718480940092,31.2205,144.53,144.47,20.6314]
[1718480940292,10.7401,144.53,144.47,20.6314]
[1718480940513,8.18,144.53,144.47,20.6314]
[1718480940910,13.3,144.53,144.47,20.6314]
[1718480941827,8.1802,144.52,144.47,15.0114]
[1718480942430,5.62,144.52,144.47,15.0114]
[1718480943648,8.1802,144.52,144.47,15.0114]
[1718480943810,13.3006,144.52,144.47,15.0114]
[1718480944840,5.62,144.52,144.47,15.0114]
[1718480945342,8.1802,144.52,144.47,15.0114]
[1718480945508,5.79,144.51,144.47,15.0114]
[1718480945844,5.62,144.51,144.47,15.0114]
[1718480946139,8.1803,144.52,144.47,15.0114]
[1718480946644,13.3007,144.52,144.47,15.0114]
[1718480946803,2.5604,144.51,144.47,15.0114]
[1718480947012,8.1803,144.52,144.47,15.0114]
[1718480947213,13.3007,144.52,144.47,15.0114]
[1718480948320,8.1803,144.52,144.47,15.0114]
[1718480948832,2.5604,144.51,144.47,15.0114]
[1718480949024,2.5604,144.51,144.43,6.2388]
[1718480949025,5.62,144.49,144.43,22.0575]
[1718480949227,5.62,144.49,144.43,27.6775]
[1718480949623,8.3505,144.5,144.44,5.62]
[1718480950502,5.62,144.49,144.43,22.0575]
[1718480950705,8.1811,144.47,144.43,15.8187]
[1718480950918,5.62,144.46,144.43,15.8187]
[1718480951219,5.62,144.47,144.43,15.8187]
[1718480951419,5.62,144.48,144.43,15.8187]
[1718480951635,5.62,144.48,144.43,21.4387]
[1718480952034,8.1809,144.48,144.43,15.8187]
[1718480952541,0.17,144.47,144.43,15.8187]
[1718480952911,8.181,144.48,144.43,15.8187]
[1718480954821,13.3028,144.48,144.43,15.8187]
[1718480955616,20.9855,144.48,144.43,15.8187]
[1718480955815,2.5611,144.47,144.43,15.8187]
[1718480956143,31.2292,144.48,144.43,15.8187]
[1718480956522,28.6682,144.48,144.43,15.8187]
[1718480956718,7.6832,144.47,144.43,15.8187]
[1718480957043,31.2293,144.48,144.43,15.8187]
[1718480957342,2.7307,144.49,144.44,5.62]
[1718480957638,8.1807,144.49,144.44,5.62]
[1718480958235,13.3022,144.49,144.43,21.4387]
[1718480958744,5.62,144.47,144.43,15.8187]
[1718480958938,8.181,144.47,144.43,15.8187]
[1718480959641,5.62,144.47,144.43,15.8187]
[1718480960357,8.181,144.47,144.43,15.8187]
[1718480960529,2.5613,144.46,144.43,15.8187]
[1718480960716,8.1813,144.46,144.41,5.62]
[1718480961337,5.62,144.46,144.41,5.62]
[1718480961725,8.1812,144.47,144.41,5.62]
[1718480963441,13.3034,144.47,144.41,5.62]
[1718480965425,23.2154,144.5,144.4,6.0962]
[1718480965642,5.62,144.49,144.44,5.62]
[1718480966035,8.1807,144.49,144.44,5.62]
[1718480966438,20.9843,144.49,144.43,5.62]
[1718480966833,5.62,144.48,144.42,5.62]
[1718480967027,20.9855,144.48,144.42,5.62]
[1718480967230,8.1811,144.47,144.42,5.62]
[1718480967550,13.3032,144.47,144.4,6.0962]
[1718480967723,13.3032,144.47,144.41,5.62]
[1718480968761,13.3032,144.47,144.4,6.0962]
[1718480969046,13.3032,144.47,144.41,5.62]
[1718480969630,10.7421,144.47,144.41,5.62]
[1718480969835,5.123,144.45,144.39,15.277]
[1718480970153,13.3046,144.45,144.39,15.277]
[1718480970336,13.3046,144.45,144.39,20.897]
[1718480971057,5.62,144.45,144.39,20.897]
[1718480971549,8.1814,144.45,144.39,20.897]
[1718480972444,5.62,144.45,144.39,20.897]
[1718480973878,8.1814,144.45,144.39,20.897]
[1718480974484,5.62,144.45,144.39,20.897]
[1718480979392,7.6836,144.47,144.4,5.62]
[1718480979690,5.79,144.46,144.4,5.62]
[1718480980200,8.3513,144.46,144.4,5.62]
[1718480981992,13.4738,144.46,144.4,5.62]
[1718480982793,21.1575,144.46,144.4,5.62]
[1718480982962,2.5614,144.45,144.4,5.62]
[1718480983171,31.4026,144.46,144.4,5.62]
[1718480985162,22.9931,144.49,144.43,5.62]
[1718480985163,23.0472,144.49,144.43,5.62]
[1718480985358,2.5606,144.5,144.43,5.62]
[1718480985564,5.62,144.5,144.44,5.62]
[1718480985764,8.1805,144.5,144.44,20.9251]
[1718480986168,10.7411,144.5,144.44,20.9251]
[1718480986377,13.3017,144.5,144.44,20.9251]
[1718480986580,8.1804,144.51,144.45,5.62]
[1718480986783,20.9822,144.51,144.45,5.62]
[1718480986995,279.6931,144.57,144.47,5.62]
[1718480987166,8.1797,144.55,144.49,5.62]
[1718480987493,8.1798,144.54,144.49,5.62]
[1718480988506,28.6602,144.53,144.47,11.6723]
[1718480988675,2.5602,144.52,144.47,11.6723]
[1718480989194,13.3001,144.53,144.47,11.6723]
[1718480989385,8.1801,144.53,144.47,11.6723]
[1718480989584,13.3001,144.53,144.48,5.62]
[1718480990307,5.62,144.53,144.48,5.62]
[1718480990680,8.1799,144.54,144.48,5.62]
[1718480991403,13.2996,144.54,144.48,5.62]
[1718480991769,22.9931,144.57,144.49,5.62]
[1718480991978,5.62,144.56,144.5,5.62]
[1718480992176,8.1796,144.55,144.5,5.62]
[1718480993281,8.1796,144.55,144.49,21.5924]
[1718480994384,2.5598,144.54,144.49,21.5924]
[1718480994689,2.56,144.53,144.49,15.9724]
[1718480994889,31.2189,144.54,144.49,15.9724]
[1718480995199,13.2998,144.54,144.49,15.9724]
[1718480996187,8.1799,144.54,144.49,15.9724]
[1718480997287,13.2996,144.54,144.49,15.9724]
[1718480997608,8.1803,144.52,144.46,21.5924]
[1718480997787,13.3006,144.52,144.46,21.5924]
[1718480998097,5.62,144.52,144.46,21.5924]
[1718480998502,8.1802,144.52,144.46,21.5924]
[1718480998691,5.62,144.52,144.46,21.5924]
[1718480999809,5.62,144.52,144.47,5.62]
[1718481000109,5.62,144.53,144.48,5.62]
[1718481000483,10.4081,144.56,144.47,0.17]
[1718481000689,8.1796,144.55,144.5,5.62]
[1718481000889,5.62,144.55,144.5,5.62]
[1718481001100,7.8487,144.56,144.5,5.62]
[1718481001405,8.1798,144.54,144.47,0.17]
[1718481001597,5.62,144.53,144.47,5.62]
[1718481002109,5.62,144.54,144.48,5.62]
[1718481002316,8.1798,144.54,144.48,5.62]
[1718481003514,5.62,144.54,144.48,5.62]
[1718481003884,5.62,144.54,144.49,5.62]
[1718481005506,8.1798,144.54,144.49,5.62]
[1718481005911,5.62,144.54,144.49,5.62]
[1718481006089,8.1798,144.54,144.49,5.62]
[1718481006514,8.1798,144.54,144.46,15.9724]
[1718481006719,20.979,144.54,144.48,5.62]
[1718481007203,5.62,144.54,144.48,5.62]
[1718481007516,8.1798,144.54,144.48,5.62]
[1718481008016,15.356,144.57,144.51,5.62]
[1718481008219,28.6539,144.57,144.51,5.62]
[1718481008394,31.2133,144.57,144.51,5.62]
[1718481008714,2.5594,144.56,144.51,5.62]
[1718481008912,31.2133,144.57,144.51,5.62]
[1718481009093,2.5594,144.56,144.51,5.62]
[1718481009621,31.2133,144.57,144.51,5.62]
[1718481010140,2.5594,144.57,144.52,5.62]
[1718481010497,28.993,144.58,144.52,5.62]
[1718481010693,2.5593,144.57,144.52,5.62]
[1718481011109,7.6779,144.57,144.52,5.62]
[1718481011304,2.5593,144.57,144.52,5.62]
[1718481011501,7.6779,144.57,144.52,5.62]
[1718481013316,2.5592,144.58,144.52,5.62]
[1718481013508,16.4394,144.67,144.56,5.62]
[1718481013711,16.4394,144.67,144.55,15.268]
[1718481013712,2.5581,144.64,144.59,5.62]
[1718481013916,28.6398,144.66,144.61,5.62]
[1718481014119,31.1976,144.66,144.61,5.62]
[1718481014613,15.3474,144.65,144.61,5.62]
[1718481014821,5.62,144.65,144.56,0.17]
[1718481015027,22.48,144.69,144.59,5.62]
[1718481015028,2.5582,144.63,144.59,5.62]
[1718481015197,2.5582,144.63,144.58,5.62]
[1718481015400,7.6747,144.63,144.58,5.62]
[1718481015816,31.2012,144.64,144.58,5.62]
[1718481017122,8.1782,144.64,144.58,5.62]
[1718481017317,5.62,144.64,144.58,5.62]
[1718481017517,2.558,144.65,144.59,5.62]
[1718481018027,20.9676,144.65,144.59,5.62]
[1718481018239,7.6743,144.64,144.56,20.34]
[1718481018412,2.5582,144.63,144.56,20.34]
[1718481018612,5.62,144.62,144.56,20.0]
[1718481018819,5.62,144.61,144.56,5.62]
[1718481020512,5.62,144.62,144.56,5.62]
[1718481020852,8.1783,144.63,144.57,5.62]
[1718481021350,25.5818,144.64,144.57,5.62]
[1718481021636,5.62,144.63,144.58,5.62]
[1718481022016,25.5793,144.65,144.55,27.0535]
[1718481022220,8.178,144.65,144.6,5.62]
[1718481022536,8.178,144.65,144.56,0.68]
[1718481022537,5.62,144.64,144.56,0.68]
[1718481022720,8.178,144.64,144.59,5.62]
[1718481024633,8.178,144.64,144.56,0.68]
[1718481024810,8.178,144.64,144.58,5.62]
[1718481025211,2.5577,144.66,144.6,5.62]
[1718481025407,19.53029589,144.72,144.61,15.438]
[1718481025621,13.2921,144.68,144.63,5.62]
[1718481026435,31.1938,144.68,144.62,5.62]
[1718481027045,13.2939,144.65,144.59,5.62]
[1718481027247,5.62,144.64,144.59,5.62]
[1718481028107,2.558,144.65,144.59,5.62]
[1718481028417,13.2938,144.65,144.59,5.62]
[1718481028618,8.178,144.65,144.59,5.62]
[1718481028821,13.2938,144.65,144.59,5.62]
[1718481029913,5.62,144.61,144.53,15.2433]
[1718481030125,5.62,144.61,144.55,5.62]
[1718481030344,5.62,144.61,144.53,15.2433]
[1718481030550,5.62,144.61,144.55,5.62]
[1718481030846,8.1786,144.61,144.55,5.62]
[1718481031030,5.62,144.61,144.55,5.62]
[1718481032944,25.5836,144.63,144.53,15.2433]
[1718481033175,25.5836,144.63,144.54,20.17]
[1718481033459,0.34,144.64,144.55,0.17]
[1718481033660,0.17,144.64,144.55,0.34]
[1718481033964,6.0,144.65,144.56,0.17]
[1718481034263,13.6737,144.65,144.56,0.17]
[1718481034433,2.5582,144.63,144.56,0.17]
[1718481034633,7.6747,144.63,144.55,0.17]
[1718481034934,23.0228,144.64,144.54,20.0]
[1718481035131,25.581,144.64,144.55,0.17]
[1718481035562,31.5798,144.65,144.55,0.51]
[1718481035862,2.5581,144.64,144.55,0.51]
[1718481036568,7.6743,144.64,144.55,0.51]
[1718481037364,15.3486,144.64,144.55,0.51]
[1718481038468,2.5582,144.63,144.55,0.51]
[1718481038842,15.3495,144.63,144.55,0.51]
[1718481039165,15.3517,144.61,144.54,20.0]
[1718481039370,2.5587,144.6,144.54,20.0]
[1718481039737,7.6758,144.61,144.54,20.0]
[1718481039943,15.3516,144.61,144.54,20.0]
[1718481040142,25.5863,144.61,144.54,20.0]
[1718481040447,2.5588,144.6,144.54,20.0]
[1718481040759,2.5588,144.6,144.53,15.2433]
[1718481041475,25.5863,144.61,144.53,15.2433]
[1718481041967,2.5586,144.61,144.53,15.2433]
[1718481043666,7.6758,144.61,144.53,15.2433]
[1718481045272,7.6763,144.6,144.53,15.2433]
[1718481045678,2.5588,144.6,144.53,15.2433]
[1718481045876,2.5594,144.57,144.53,15.2433]
[1718481046178,2.5589,144.59,144.53,15.2433]
[1718481046554,25.5885,144.6,144.53,15.2433]
[1718481046955,7.6767,144.6,144.53,15.2433]
[1718481047169,2.5589,144.6,144.53,15.2433]
[1718481047666,25.5871,144.61,144.53,15.2433]
[1718481048183,2.5587,144.6,144.53,15.2433]
[1718481049102,23.0284,144.61,144.53,15.2433]
[1718481049281,25.5871,144.61,144.53,15.2433]
[1718481049480,2.5587,144.61,144.53,15.2433]
[1718481049976,7.6759,144.61,144.53,15.2433]
[1718481050191,15.3517,144.61,144.53,15.2433]
[1718481050493,25.5861,144.61,144.53,15.2433]
[1718481050981,7.6764,144.6,144.53,15.2433]
[1718481052190,2.5588,144.6,144.53,15.2433]
[1718481052920,5.63,144.59,144.53,20.8733]
[1718481054866,5.63,144.59,144.53,15.2433]
[1718481055088,5.63,144.56,144.48,6.2473]
[1718481055286,5.63,144.56,144.49,20.0]
[1718481055596,5.63,144.56,144.51,5.63]
[1718481056265,5.63,144.57,144.51,5.63]
[1718481062281,5.63,144.57,144.49,20.0]
[1718481062586,5.63,144.57,144.51,5.63]
[1718481064505,5.63,144.56,144.51,5.63]
[1718481072196,5.63,144.56,144.49,20.0]
[1718481072398,5.63,144.53,144.46,15.3055]
[1718481072706,5.63,144.52,144.46,15.3055]
[1718481072910,23.0392,144.54,144.46,5.63]
[1718481072911,5.63,144.51,144.46,5.63]
[1718481074207,7.6795,144.54,144.46,5.63]
[1718481074208,5.63,144.52,144.46,5.63]
[1718481074588,35.3911,144.55,144.47,5.63]
[1718481074589,5.63,144.53,144.47,5.63]
[1718481074785,13.74732336,144.59,144.45,15.223]
[1718481074988,13.74732336,144.59,144.52,5.63]
[1718481074989,23.7763,144.58,144.52,5.63]
[1718481075198,5.63,144.57,144.52,5.63]
[1718481076217,16.0989,144.58,144.52,5.63]
[1718481076516,5.63,144.59,144.54,5.63]
[1718481077124,8.1888,144.6,144.54,5.63]
[1718481077320,28.659,144.6,144.54,5.63]
[1718481077616,2.5589,144.59,144.54,5.63]
[1718481077791,28.659,144.6,144.54,5.63]
[1718481077993,31.2179,144.6,144.54,5.63]
[1718481078292,2.559,144.59,144.54,5.63]
[1718481079218,20.9838,144.59,144.54,5.63]
[1718481079714,13.3069,144.59,144.54,5.63]
[1718481080111,31.2197,144.59,144.53,5.63]
[1718481081215,2.5591,144.58,144.53,5.63]
[1718481081517,31.2198,144.59,144.53,5.63]
[1718481081898,2.5591,144.58,144.53,5.63]
[1718481082891,7.6774,144.58,144.53,5.63]
[1718481084017,15.3548,144.58,144.53,5.63]
[1718481084220,20.9848,144.58,144.52,5.63]
[1718481086018,13.3074,144.58,144.52,5.63]
[1718481086200,2.559,144.59,144.53,5.63]
[1718481086533,7.6769,144.59,144.54,5.63]
[1718481086695,2.559,144.59,144.54,5.63]
[1718481087029,7.6769,144.59,144.54,5.63]
[1718481087222,7.6769,144.59,144.5,15.223]
[1718481087223,5.1177,144.6,144.55,5.63]
[1718481087401,7.6765,144.6,144.55,5.63]
[1718481087595,7.6765,144.6,144.56,5.63]
[1718481088009,2.5589,144.59,144.55,5.63]
[1718481088600,8.1892,144.58,144.51,0.17]
[1718481088822,13.3075,144.58,144.53,5.63]
[1718481089321,5.63,144.58,144.53,5.63]
[1718481089494,31.2214,144.58,144.51,0.34]
[1718481089697,31.2214,144.58,144.53,5.63]
[1718481089894,13.3075,144.58,144.53,5.63]
[1718481090198,8.1892,144.58,144.53,5.63]
[1718481090441,5.63,144.58,144.53,5.63]
[1718481090606,8.1891,144.58,144.53,5.63]
[1718481091109,5.63,144.58,144.53,5.63]
[1718481092213,5.63,144.59,144.53,5.63]
[1718481092411,8.1889,144.59,144.53,5.63]
[1718481094308,5.63,144.59,144.53,5.63]
[1718481094811,5.63,144.59,144.51,0.34]
[1718481095026,5.63,144.59,144.53,5.63]
[1718481095933,13.3069,144.59,144.51,20.17]
[1718481096114,5.63,144.57,144.51,20.0]
[1718481096322,5.63,144.57,144.51,25.63]
[1718481096529,5.63,144.56,144.5,20.853]
[1718481098637,13.3084,144.56,144.5,5.63]
[1718481098840,2.559,144.59,144.51,5.63]
[1718481099132,2.559,144.59,144.47,0.17]
[1718481099133,5.63,144.58,144.52,5.63]
[1718481100133,5.63,144.57,144.49,0.17]
[1718481100318,5.63,144.57,144.51,5.63]
[1718481100751,5.63,144.55,144.47,0.17]
[1718481100940,5.63,144.55,144.49,5.63]
[1718481101147,5.63,144.55,144.5,20.0]
[1718481102040,5.63,144.55,144.49,5.63]
[1718481102743,22.4854,144.57,144.51,5.63]
[1718481102920,28.1154,144.57,144.52,5.63]
[1718481103249,22.4854,144.57,144.52,5.63]
[1718481105253,22.4854,144.57,144.49,0.17]
[1718481105435,0.17,144.6,144.54,5.63]
[1718481105642,44.0618,144.61,144.55,5.63]
[1718481105857,2.5587,144.6,144.55,5.63]
[1718481106059,5.63,144.6,144.54,5.63]
[1718481106362,8.1887,144.6,144.54,5.63]
[1718481106578,5.63,144.6,144.54,5.63]
[1718481106739,13.3062,144.6,144.54,5.63]
[1718481107553,5.63,144.59,144.49,36.4142]
[1718481107772,5.63,144.59,144.53,5.63]
[1718481108362,5.63,144.59,144.49,36.4142]
[1718481108554,25.6386,144.61,144.54,5.63]
[1718481108854,5.63,144.6,144.54,5.63]
[1718481109057,31.2686,144.61,144.55,5.63]
[1718481109256,36.3858,144.61,144.55,5.63]
[1718481109463,31.2686,144.61,144.55,5.63]
[1718481110159,36.3858,144.61,144.55,5.63]
[1718481111362,5.63,144.6,144.55,5.63]
[1718481114143,2.5591,144.58,144.51,6.3624]
[1718481114354,5.63,144.58,144.52,20.0]
[1718481114562,5.63,144.58,144.53,5.63]
[1718481114856,5.63,144.59,144.53,5.63]
[1718481115644,5.63,144.59,144.54,5.63]
[1718481115846,23.08,144.61,144.54,5.63]
[1718481116059,5.63,144.6,144.54,5.63]
[1718481116767,5.63,144.6,144.55,5.63]
[1718481118063,7.1884861,144.64,144.54,15.5768]
[1718481118064,7.6743,144.64,144.54,15.5768]
[1718481118278,5.63,144.63,144.57,5.63]
[1718481118636,2.5581,144.64,144.57,5.63]
[1718481118860,5.63,144.64,144.58,5.63]
[1718481121360,21.9939,144.65,144.6,5.63]
[1718481123362,30.1817,144.65,144.59,5.63]
[1718481123580,27.6239,144.65,144.59,5.63]
[1718481124271,5.63,144.66,144.61,5.63]
[1718481125392,264.3723,144.68,144.61,5.63]
[1718481125571,5.63,144.67,144.61,5.63]
[1718481126459,5.63,144.67,144.62,5.63]
[1718481128082,262.33,144.68,144.62,5.63]
[1718481129159,22.2417,144.73,144.63,0.17]
[1718481129356,27.8717,144.73,144.67,5.63]
[1718481129689,30.4282,144.73,144.67,5.63]
[1718481130057,27.8717,144.73,144.67,5.63]
[1718481130378,30.4281,144.73,144.67,5.63]
[1718481130679,27.8717,144.73,144.67,5.63]
[1718481131686,22.2417,144.73,144.68,5.63]
[1718481131849,27.8717,144.73,144.68,5.63]
[1718481135861,22.2417,144.73,144.68,5.63]
[1718481136889,22.2417,144.73,144.69,5.63]
[1718481137798,22.2417,144.73,144.68,5.63]
[1718481139888,22.2417,144.73,144.64,16.6335]
[1718481140065,5.63,144.71,144.65,5.63]
[1718481141463,5.63,144.71,144.62,22.52]
[1718481141464,7.8399,144.72,144.61,16.6335]
[1718481141790,5.63,144.7,144.65,5.63]
[1718481142087,0.17,144.71,144.65,5.63]
[1718481142088,5.8,144.71,144.65,5.63]